bitfinex-derivatives/quotes_BNBF0:USTF0_20250904
["timestamp","ask_amount","ask_price","bid_price","bid_amount"]
[1756972576185,0.20518263,848.18,847.9,0.79568639]
[1756972579580,0.20518263,848.18,847.91,0.79568639]
[1756972581686,0.20518263,848.18,847.92,0.79568639]
[1756972582187,0.20518263,848.18,847.9,0.79568639]
[1756972584287,0.20518263,848.18,847.91,0.79568639]
[1756972587290,0.20518263,848.18,847.92,0.79568639]
[1756972587587,0.20518263,848.18,847.91,0.79568639]
[1756972588087,0.20518263,848.18,847.92,0.79568639]
[1756972589986,0.20518263,848.18,847.91,0.79568639]
[1756972590388,0.20518263,848.18,847.92,0.79568639]
[1756972590891,0.20518263,848.18,847.9,0.79568639]
[1756972592101,0.20518263,848.18,847.91,0.79568639]
[1756972592397,0.20518263,848.18,847.92,0.79568639]
[1756972594399,0.20518263,848.18,847.93,0.79568639]
[1756972594698,0.20518263,848.18,847.93,0.79497458]
[1756972595293,0.20518263,848.18,847.94,0.79497458]
[1756972596394,0.20518263,848.18,847.95,0.79497458]
[1756972599295,0.20518263,848.18,847.96,0.79497458]
[1756972600999,0.20518263,848.18,847.99,0.79497458]
[1756972601499,0.20518263,848.18,847.94,0.79497458]
[1756972603298,0.20518263,848.18,847.95,0.79497458]
[1756972604002,0.20518263,848.18,847.92,0.79497458]
[1756972604203,0.20518263,848.18,847.93,0.79497458]
[1756972611806,0.20518263,848.18,847.94,0.79497458]
[1756972613110,0.20518263,848.18,847.84,0.79497458]
[1756972613310,0.20518263,848.18,847.83,0.79497458]
[1756972614110,0.20518263,848.18,847.82,0.79497458]
[1756972616113,0.20518263,848.18,847.81,0.79497458]
[1756972616513,1.059266,848.61,847.81,0.79497458]
[1756972616809,0.20514816,848.09,847.81,0.79497458]
[1756972617013,1.059266,848.6,847.81,0.79497458]
[1756972617310,0.20514876,848.08,847.81,0.79497458]
[1756972617614,1.059266,848.6,847.81,0.79497458]
[1756972617910,0.20514876,848.08,847.81,0.79497458]
[1756972618109,1.059266,848.58,847.82,0.79497458]
[1756972618310,0.20514876,848.08,847.82,0.79497458]
[1756972618609,1.059266,848.57,847.82,0.79497458]
[1756972618816,0.20514997,848.08,847.84,0.79497458]
[1756972619013,1.059266,848.51,847.84,0.79497458]
[1756972619213,1.059266,848.52,847.84,0.79497458]
[1756972619411,0.20515239,848.08,847.84,0.79497458]
[1756972619714,1.059266,848.52,847.84,0.79497458]
[1756972619912,0.20515179,848.08,847.84,0.79497458]
[1756972620210,1.059266,848.52,847.84,0.79497458]
[1756972620414,0.20515179,848.08,847.84,0.79497458]
[1756972620614,1.059266,848.52,847.84,0.79497458]
[1756972620812,0.20515179,848.08,847.85,0.79497458]
[1756972622314,0.20515179,848.08,847.84,0.79497458]
[1756972623015,0.20515179,848.08,847.85,0.79497458]
[1756972625516,0.20515179,848.08,847.83,0.79497458]
[1756972626913,0.20515179,848.08,847.82,0.79497458]
[1756972630314,0.20515179,848.08,847.8,0.79497458]
[1756972633226,1.059266,848.6,847.8,0.79497458]
[1756972633527,0.20513365,848.21,847.8,0.79497458]
[1756972633824,1.059266,848.69,847.76,0.79497458]
[1756972634027,0.20513365,848.21,847.83,0.79497458]
[1756972634327,1.059266,848.74,847.83,0.79497458]
[1756972634628,0.20512337,848.21,847.83,0.79497458]
[1756972634829,1.059266,848.74,847.83,0.79497458]
[1756972635029,0.20512337,848.21,847.83,0.79497458]
[1756972635325,1.059266,848.73,847.83,0.79497458]
[1756972635524,0.20512337,848.21,847.83,0.79497458]
[1756972635827,1.059266,848.73,847.83,0.79497458]
[1756972636025,0.20512397,848.21,847.83,0.79497458]
[1756972636431,1.059266,848.73,847.83,0.79497458]
[1756972636728,0.20512397,848.21,847.83,0.79497458]
[1756972636928,1.059266,848.73,847.83,0.79497458]
[1756972637132,0.20512397,848.51,847.84,0.79497458]
[1756972639432,0.20512397,848.51,847.91,0.79497458]
[1756972639633,0.20512397,848.51,847.94,0.79497458]
[1756972640030,0.20512397,848.51,847.95,0.79497458]
[1756972641531,0.20512397,848.51,847.94,0.79497458]
[1756972643336,0.20512397,848.51,847.93,0.79497458]
[1756972643637,0.20512397,848.51,847.97,0.79497458]
[1756972644537,0.20512397,848.51,847.99,0.79497458]
[1756972645537,0.20512397,848.51,847.98,0.79497458]
[1756972647534,0.20512397,848.51,847.97,0.79497458]
[1756972649838,0.20512397,848.51,847.98,0.79497458]
[1756972650438,0.20512397,848.51,847.97,0.79497458]
[1756972652340,0.20512397,848.51,847.95,0.79497458]
[1756972654338,0.20512397,848.51,847.96,0.79497458]
[1756972654539,0.20512397,848.51,847.95,0.79497458]
[1756972655142,0.20512397,848.51,847.96,0.79497458]
[1756972655342,0.20512397,848.51,847.95,0.79497458]
[1756972655742,0.20512397,848.51,847.96,0.79497458]
[1756972656042,0.20512397,848.51,847.95,0.79497458]
[1756972656243,0.20512397,848.51,847.96,0.79497458]
[1756972656439,0.20512397,848.51,847.95,0.79497458]
[1756972661840,0.20512397,848.51,847.94,0.79497458]
[1756972662242,0.20512397,848.51,847.96,0.79497458]
[1756972668150,0.20512397,848.51,847.95,0.79497458]
[1756972675358,0.20512397,848.51,847.93,0.79497458]
[1756972676155,0.20512397,848.51,847.91,0.79497458]
[1756972676759,0.20512397,848.51,847.92,0.79497458]
[1756972681162,0.20512397,848.51,847.95,0.79497458]
[1756972683261,0.20512397,848.51,847.96,0.79497458]
[1756972683962,0.20512397,848.51,847.98,0.79497458]
[1756972686367,0.20512397,848.51,847.99,0.79497458]
[1756972688965,0.20512397,848.51,847.98,0.79497458]
[1756972689366,0.20512397,848.51,847.99,0.79497458]
[1756972689767,0.20512397,848.51,847.98,0.79497458]
[1756972690367,0.20512397,848.51,847.99,0.79497458]
[1756972690869,0.20512397,848.51,848.02,0.79497458]
[1756972691369,0.20512397,848.51,848.03,0.79497458]
[1756972692868,0.20512397,848.51,848.04,0.79497458]
[1756972693369,0.20512397,848.51,848.05,0.79497458]
[1756972694874,0.20512397,848.51,848.06,0.79497458]
[1756972696477,0.20512397,848.51,848.07,0.79497458]
[1756972696776,0.20512397,848.51,848.06,0.79497458]
[1756972696977,0.20512397,848.51,848.02,0.79497458]
[1756972697274,0.20512397,848.51,847.93,0.79497458]
[1756972698478,0.20512397,848.51,847.94,0.79497458]
[1756972699577,0.20512397,848.51,847.95,0.79497458]
[1756972702283,0.20512397,848.51,846.67,2.6494039]
[1756972702284,0.20512397,848.51,847.97,0.79497458]
[1756972702886,0.20512397,848.51,847.98,0.79497458]
[1756972704082,0.20512397,848.51,847.99,0.79497458]
[1756972706288,0.20512397,848.51,847.95,0.79497458]
[1756972706484,0.20512397,848.51,847.93,0.79497458]
[1756972706983,0.20512397,848.51,847.96,0.79497458]
[1756972707388,0.20512397,848.51,847.95,0.79497458]
[1756972707786,0.20512397,848.51,847.94,0.79497458]
[1756972708188,0.20512397,848.51,847.92,0.79497458]
[1756972709386,0.20512397,848.51,847.91,0.79497458]
[1756972712389,0.20512397,848.51,847.9,0.79497458]
[1756972712694,0.20512397,848.51,847.89,0.79497458]
[1756972712894,0.20512397,848.51,847.9,0.79497458]
[1756972713390,0.20512397,848.51,847.89,0.79497458]
[1756972713894,0.20512397,848.51,847.9,0.79497458]
[1756972714394,0.20512397,848.51,847.89,0.79497458]
[1756972718996,0.20512397,848.51,847.88,0.79497458]
[1756972719399,0.20512397,848.51,847.87,0.79497458]
[1756972723501,0.20512397,848.51,847.88,0.79497458]
[1756972740110,0.20512397,848.51,847.85,0.79497458]
[1756972741313,0.20512397,848.51,847.8,0.79497458]
[1756972741513,0.20512397,848.51,847.78,0.79497458]
[1756972742317,0.20512397,848.51,847.77,0.79497458]
[1756972742713,0.20512397,848.51,847.71,0.79497458]
[1756972744314,0.20512397,848.51,847.69,0.79497458]
[1756972744717,1.059266,848.78,847.69,0.79497458]
[1756972746321,1.059266,848.86,847.62,0.79497458]
[1756972746720,1.059266,848.83,847.63,0.79497458]
[1756972748021,1.059266,848.82,847.63,0.79497458]
[1756972748320,1.059266,848.79,847.6,0.79497458]
[1756972749219,1.059266,848.77,847.57,0.79497458]
[1756972750226,1.059266,848.78,847.57,0.79497458]
[1756972750424,1.059266,848.77,847.57,0.79497458]
[1756972750725,1.059266,848.78,847.57,0.79497458]
[1756972751221,1.059266,848.79,847.56,0.79497458]
[1756972751721,1.059266,848.78,847.56,0.79497458]
[1756972752321,1.059266,848.79,847.56,0.79497458]
[1756972753325,1.059266,848.76,847.56,0.79497458]
[1756972754723,1.059266,848.76,847.31,1.0597615]
[1756972754724,1.059266,848.71,847.58,0.79497458]
[1756972755226,1.059266,848.72,847.58,0.79497458]
[1756972755427,1.059266,848.71,847.58,0.79497458]
[1756972755625,1.059266,848.71,846.2,2.6494039]
[1756972755626,1.059266,848.7,847.59,0.79497458]
[1756972755826,1.059266,848.66,847.59,0.79497458]
[1756972756023,1.059266,848.6,847.52,0.79497458]
[1756972757224,1.059266,848.58,847.53,0.79497458]
[1756972757928,1.059266,848.59,847.52,0.79497458]
[1756972759232,1.059266,848.6,847.51,0.79497458]
[1756972761229,1.059266,848.6,847.5,0.79497458]
[1756972762333,1.059266,848.61,847.5,0.79497458]
[1756972763033,1.059266,848.6,847.5,0.79497458]
[1756972764233,1.059266,848.61,847.5,0.79497458]
[1756972764434,1.059266,848.6,847.5,0.79497458]
[1756972765236,1.059266,848.61,847.5,0.79497458]
[1756972765436,1.059266,848.59,847.51,0.79497458]
[1756972765632,1.059266,848.58,847.51,0.79497458]
[1756972765833,1.059266,848.48,847.55,0.79497458]
[1756972767238,1.059266,848.49,847.55,0.79497458]
[1756972767532,1.059266,848.49,847.54,0.79497458]
[1756972767939,1.059266,848.47,847.56,0.79497458]
[1756972768238,1.059266,848.47,847.55,0.79497458]
[1756972769440,1.059266,848.46,847.55,0.79497458]
[1756972770241,1.588899,848.61,846.65,2.6494039]
[1756972770242,1.059266,848.5,847.54,0.79497458]
[1756972770442,1.059266,848.45,847.52,0.79497458]
[1756972771241,1.059266,848.45,847.36,1.0597615]
[1756972771242,1.059266,848.45,847.51,0.79497458]
[1756972773238,1.059266,848.44,847.51,0.79497458]
[1756972774246,1.059266,848.45,847.51,0.79497458]
[1756972774445,1.059266,848.46,847.5,0.79497458]
[1756972775540,1.059266,848.45,847.48,0.79497458]
[1756972777248,1.059266,848.44,847.48,0.79497458]
[1756972778352,1.059266,848.45,847.48,0.79497458]
[1756972780155,1.059266,848.42,847.49,0.79497458]
[1756972782854,0.79171012,848.27,847.49,0.79497458]
[1756972784256,0.79171012,848.26,847.5,0.79497458]
[1756972787259,0.79171012,848.25,847.51,0.79497458]
[1756972791264,0.79171012,848.24,847.52,0.79497458]
[1756972792466,0.79171012,848.27,847.5,0.79497458]
[1756972794369,0.79171012,848.26,847.51,0.79497458]
[1756972794769,0.79171012,848.27,847.5,0.79497458]
[1756972795370,0.79171012,848.27,847.51,0.79497458]
[1756972796371,0.79171012,848.26,847.51,0.79497458]
[1756972797470,0.79258561,848.25,847.52,0.79368836]
[1756972799369,0.79258561,848.24,847.53,0.79368836]
[1756972800175,0.79258561,848.24,846.21,3.7091655]
[1756972800972,0.79286176,848.26,847.54,0.79398938]
[1756972801373,0.79286176,848.25,847.55,0.79398938]
[1756972802275,0.79286176,848.24,847.56,0.79398938]
[1756972802571,0.79286176,848.22,847.57,0.79398938]
[1756972803375,0.79286176,848.21,847.53,0.79398938]
[1756972803575,0.79286176,848.22,847.54,0.79398938]
[1756972803872,0.79286176,848.22,847.55,0.79398938]
[1756972804173,0.79286176,848.2,847.54,0.79398938]
[1756972804575,0.79286176,848.19,847.53,0.79398938]
[1756972804876,0.79286176,848.19,847.54,0.79398938]
[1756972805076,0.79286176,848.2,847.54,0.79398938]
[1756972805273,0.79286176,848.18,847.53,0.79398938]
[1756972806078,0.79286176,848.17,847.53,0.79398938]
[1756972806275,0.79286176,848.16,847.53,0.79398938]
[1756972806579,0.79286176,848.15,847.5,0.79398938]
[1756972807379,0.79286176,848.15,847.51,0.79398938]
[1756972807678,0.79286176,848.15,847.5,0.79398938]
[1756972807879,0.79286176,848.12,847.52,0.79398938]
[1756972808976,0.79286176,848.11,847.51,0.79398938]
[1756972809174,0.79286176,848.12,847.51,0.79398938]
[1756972809378,0.79286176,848.11,847.51,0.79398938]
[1756972809777,0.79286176,848.12,847.5,0.79398938]
[1756972810081,0.79286176,848.05,847.44,0.79398938]
[1756972813084,0.79286176,848.04,847.44,0.79398938]
[1756972814283,0.79286176,848.03,847.45,0.79398938]
[1756972814484,0.79286176,848.04,847.44,0.79398938]
[1756972814786,0.79286176,848.03,847.45,0.79398938]
[1756972815586,0.79286176,848.01,847.46,0.79398938]
[1756972815885,0.79286176,848.02,847.46,0.79398938]
[1756972816285,0.79286176,848.02,847.45,0.79398938]
[1756972817185,0.79286176,848.02,847.46,0.79398938]
[1756972817385,0.79286176,848.02,847.45,0.79398938]
[1756972817681,0.79286176,848.03,847.45,0.79398938]
[1756972818293,0.79286176,848.04,847.44,0.79398938]
[1756972818688,0.79286176,848.03,847.45,0.79398938]
[1756972820597,0.79286176,848.02,847.45,0.79398938]
[1756972821095,0.79286176,848.02,847.46,0.79398938]
[1756972821998,0.79286176,848.05,847.44,0.79398938]
[1756972822698,0.79286176,848.04,847.44,0.79398938]
[1756972825700,0.79286176,848.04,847.45,0.79398938]
[1756972826301,0.79286176,848.03,847.45,0.79398938]
[1756972826501,0.79286176,848.04,847.45,0.79398938]
[1756972827000,0.79286176,848.03,847.45,0.79398938]
[1756972827298,0.79286176,848.04,847.45,0.79398938]
[1756972828199,0.79286176,848.23,847.46,0.79398938]
[1756972828399,0.79286176,848.24,847.47,0.79398938]
[1756972828602,0.79286176,848.23,847.47,0.79398938]
[1756972829103,0.79286176,848.19,847.5,0.79398938]
[1756972829605,0.79286176,848.08,847.57,0.79398938]
[1756972830300,0.79286176,848.09,847.56,0.79398938]
[1756972830505,0.79286176,848.12,847.59,0.79398938]
[1756972830705,0.79286176,848.13,847.59,0.79398938]
[1756972831602,3.7000215,849.33,846.39,3.7052838]
[1756972831603,0.79286176,848.14,847.58,0.79398938]
[1756972832807,0.79286176,848.18,847.56,0.79398938]
[1756972833502,0.79286176,848.19,847.55,0.79398938]
[1756972834504,0.79286176,848.23,847.52,0.79398938]
[1756972837611,0.79286176,848.25,847.51,0.79398938]
[1756972838606,0.79286176,848.27,847.49,0.79398938]
[1756972839009,0.79286176,848.25,847.5,0.79398938]
[1756972839210,0.79286176,848.27,847.49,0.79398938]
[1756972843017,0.79286176,848.26,847.48,0.79398938]
[1756972844312,0.79286176,848.24,847.49,0.79398938]
[1756972845018,0.79286176,848.39,847.3,0.79398938]
[1756972845313,0.79286176,848.38,847.3,0.79398938]
[1756972845518,0.79286176,848.38,845.79,3.7052838]
[1756972845519,0.79286176,848.38,847.31,0.79398938]
[1756972847218,0.79286176,848.38,847.3,0.79398938]
[1756972847423,0.79286176,848.38,847.31,0.79398938]
[1756972847816,0.79286176,848.38,847.3,0.79398938]
[1756972848227,0.79286176,848.38,847.31,0.79398938]
[1756972848417,1.5857235,849.03,846.98,1.0586525]
[1756972848722,1.5857235,849.03,844.67,3.7052838]
[1756972864829,0.20529157,859.56,834.14,0.20529157]
[1756973008150,0.20529157,859.56,593.25,0.0505689]
[1756973008352,0.20523345,853.21,836.68,0.20523345]
[1756973008552,0.20523345,853.21,593.25,0.0505689]
[1756973009752,0.20523345,859.56,834.14,0.20523345]
[1756973209819,0.20523345,859.56,593.87,0.0505161]
[1756973210020,0.20501582,853.21,836.68,0.20501582]
[1756973210318,0.04576555,874.02,823.11,0.04859617]
[1756973211518,0.20503031,861.3,835.83,0.20503031]
[1756973297401,0.04576555,874.02,823.11,0.04859617]
[1756973307911,0.20494096,861.3,835.83,0.20494096]
[1756973368260,0.20494096,861.3,823.11,0.04859617]
[1756973368464,0.04576555,874.02,823.11,0.04859617]
[1756973368661,0.20479382,851.76,832.65,0.20479382]
[1756973368960,0.04576555,874.02,832.65,0.20479382]
[1756973370163,0.20483963,863.68,832.65,0.20479382]
[1756973548111,0.04576555,874.02,823.11,0.04859617]
[1756973548508,0.20492407,861.3,833.92,0.20492407]
[1756973668806,0.04576555,874.02,823.11,0.04859617]
[1756973669208,0.20507139,861.3,834.68,0.20507139]
[1756973848755,0.04576555,874.02,823.11,0.04859617]
[1756973849156,0.20504964,861.3,835.14,0.20504964]
[1756974027999,0.04576555,874.02,823.11,0.04859617]
[1756974028297,0.20505206,861.3,835.41,0.20505206]
[1756974088748,0.04576555,874.02,823.11,0.04859617]
[1756974088945,0.20499408,854.83,837.99,0.20499408]
[1756974089149,0.04576555,874.02,823.11,0.04859617]
[1756974090451,0.20499408,861.3,835.83,0.20499408]
[1756974268093,0.04576555,874.02,823.11,0.04859617]
[1756974268586,0.20497959,861.3,835.83,0.20497959]
[1756974388770,0.04576555,874.02,823.11,0.04859617]
[1756974389073,0.20504964,861.3,823.11,0.04859617]
[1756974389268,0.20504964,861.3,835.83,0.20504964]
[1756974389470,0.20504964,861.3,823.11,0.04859617]
[1756974390672,0.20504964,861.3,832.65,0.20504964]
[1756974451026,0.04576555,874.02,823.11,0.04859617]
[1756974451426,0.20494096,861.3,833.92,0.20494096]
[1756974462239,0.04576555,874.02,823.11,0.04859617]
[1756974467251,0.20494096,861.3,834.68,0.20494096]
[1756974508181,0.04576555,874.02,823.11,0.04859617]
[1756974569133,0.20488063,861.3,835.14,0.20488063]
[1756974688852,0.04576555,874.02,823.11,0.04859617]
[1756974689156,0.20490959,861.3,835.41,0.20490959]
[1756974782512,0.20490959,861.3,835.41,0.20490959]
[1756974868588,0.04576555,874.02,823.11,0.04859617]
[1756974868787,0.20506172,854.83,837.99,0.20506172]
[1756974869087,0.04576555,874.02,823.11,0.04859617]
[1756974870289,0.20506172,861.3,835.83,0.20506172]
[1756975048017,0.04576555,874.02,823.11,0.04859617]
[1756975048414,0.20506656,861.3,835.83,0.20506656]
[1756975248366,0.04576555,874.02,823.11,0.04859617]
[1756975248666,0.20515118,854.94,838.37,0.20515118]
[1756975248865,0.04576555,874.02,838.37,0.20515118]
[1756975249170,0.04576555,874.02,823.11,0.04859617]
[1756975250169,0.2051536,861.3,835.83,0.2051536]
[1756975407692,0.04576555,874.02,823.11,0.04859617]
[1756975408096,0.20501582,861.3,835.83,0.20501582]
[1756975417909,1.0593055,849.12,848.35,0.79447916]
[1756975419107,1.0593055,849.09,848.36,0.79447916]
[1756975419505,1.0593055,849.02,848.39,0.79447916]
[1756975420106,1.0593055,849.03,848.39,0.79447916]
[1756975420309,1.0593055,849.03,848.38,0.79447916]
[1756975421208,1.0593055,849.03,848.39,0.79447916]
[1756975422310,1.0593055,849.02,848.39,0.79447916]
[1756975422709,1.0593055,849.03,848.38,0.79447916]
[1756975425314,1.0593055,849.04,848.38,0.79447916]
[1756975428013,1.0593055,849.02,848.39,0.79447916]
[1756975433622,0.79449489,848.83,848.34,0.79447916]
[1756975438122,0.79449489,848.83,848.35,0.79447916]
[1756975439121,0.79449489,848.82,848.35,0.79447916]
[1756975441926,0.79449489,848.83,848.35,0.79447916]
[1756975443321,0.79449489,848.79,848.31,0.79447916]
[1756975446124,0.79449489,848.78,848.31,0.79447916]
[1756975446428,0.79449489,848.78,848.3,0.79447916]
[1756975449232,0.79449489,848.78,848.31,0.79447916]
[1756975450135,0.79449489,848.77,848.31,0.79447916]
[1756975452831,1.5889583,849.05,848.17,1.0593055]
[1756975453043,1.5889583,849.05,848.04,1.5889583]
[1756975453336,2.6482638,849.6,847.49,2.6482638]
[1756975453536,2.6482638,849.6,847.21,3.7075694]
[1756975453836,0.79481169,848.77,848.31,0.79481169]
[1756975454137,0.79481169,848.77,848.32,0.79481169]
[1756975455237,0.79481169,848.76,848.32,0.79481169]
[1756975457138,0.79481169,848.76,848.33,0.79481169]
[1756975458141,0.79481169,848.75,848.33,0.79481169]
[1756975458542,0.79481169,848.77,848.32,0.79481169]
[1756975459140,0.79481169,848.76,848.33,0.79481169]
[1756975463039,0.79481169,848.77,848.32,0.79481169]
[1756975466541,0.79481169,848.78,848.31,0.79481169]
[1756975467241,0.79481169,848.78,848.32,0.79481169]
[1756975468345,0.79481169,848.78,847.99,1.5896233]
[1756975468346,0.79481169,848.76,848.33,0.79481169]
[1756975469747,0.79481169,848.89,848.23,0.79481169]
[1756975470046,0.79481169,848.89,847.13,3.7091212]
[1756975470047,0.79481169,848.8,848.21,0.79481169]
[1756975470247,0.79481169,848.81,848.2,0.79481169]
[1756975470946,0.79481169,848.81,848.21,0.79481169]
[1756975471147,0.79481169,848.8,848.22,0.79481169]
[1756975471346,0.79481169,848.8,848.21,0.79481169]
[1756975471644,0.79481169,848.81,848.17,0.79481169]
[1756975471848,0.79481169,848.84,848.14,0.79481169]
[1756975472248,0.79481169,848.85,848.12,0.79481169]
[1756975472446,2.6493723,850.26,848.13,0.79481169]
[1756975472447,0.79481169,848.84,848.13,0.79481169]
[1756975472848,0.79481169,848.86,848.12,0.79481169]
[1756975473348,0.79481169,848.88,848.11,0.79481169]
[1756975473646,0.79481169,848.88,848.1,0.79481169]
[1756975473946,0.79481169,848.87,848.08,0.79481169]
[1756975474448,0.79481169,848.87,848.07,0.79481169]
[1756975475350,0.79481169,848.88,848.07,0.79481169]
[1756975476446,0.79481169,848.88,848.06,0.79481169]
[1756975477045,0.79472278,848.88,848.07,0.79472278]
[1756975477251,0.79472278,848.88,848.06,0.79472278]
[1756975478155,0.79472278,848.89,848.06,0.79472278]
[1756975480350,0.79472278,848.89,848.05,0.79472278]
[1756975481253,0.79472278,848.9,848.05,0.79472278]
[1756975481454,0.79472278,848.88,848.06,0.79472278]
[1756975481855,0.79472278,848.86,848.08,0.79472278]
[1756975482055,0.79472278,848.84,848.09,0.79472278]
[1756975482656,0.79472278,848.82,848.1,0.79472278]
[1756975483255,0.79472278,848.78,848.12,0.79472278]
[1756975485260,0.79472278,848.79,848.12,0.79472278]
[1756975485461,0.79472278,848.77,848.13,0.79472278]
[1756975487561,0.79472278,848.76,848.13,0.79472278]
[1756975488157,0.79472278,848.77,848.13,0.79472278]
[1756975490960,0.79472278,848.8,848.11,0.79472278]
[1756975491462,0.79472278,848.79,848.12,0.79472278]
[1756975492565,0.79472278,848.89,848.03,0.79472278]
[1756975492864,0.79472278,848.84,847.98,0.79472278]
[1756975493463,0.79472278,848.85,847.96,0.79472278]
[1756975493761,0.79472278,848.85,847.94,0.79472278]
[1756975494163,0.79472278,848.85,847.93,0.79472278]
[1756975495266,0.79472278,848.86,847.93,0.79472278]
[1756975496162,0.79472278,848.86,847.92,0.79472278]
[1756975498164,0.79472278,848.87,847.92,0.79472278]
[1756975498669,0.79472278,848.86,847.92,0.79472278]
[1756975501470,0.79472278,848.85,847.93,0.79472278]
[1756975502470,0.79472278,848.8,847.96,0.79472278]
[1756975502872,0.79472278,848.79,847.96,0.79472278]
[1756975503372,0.79472278,848.78,847.97,0.79472278]
[1756975503572,0.79472278,848.7,848.03,0.79472278]
[1756975503769,0.79472278,848.69,848.03,0.79472278]
[1756975504268,0.79472278,848.68,848.04,0.79472278]
[1756975506771,0.79472278,848.73,848.01,0.79472278]
[1756975507273,0.79472278,848.73,848.0,0.79472278]
[1756975507470,0.79472278,848.76,847.99,0.79472278]
[1756975508374,0.79472278,848.75,847.99,0.79472278]
[1756975509773,0.79472278,848.74,848.0,0.79472278]
[1756975513476,0.79472278,848.77,847.98,0.79472278]
[1756975514079,0.79472278,848.77,847.97,0.79472278]
[1756975514378,0.79472278,848.76,847.97,0.79472278]
[1756975515380,0.79472278,848.77,847.96,0.79472278]
[1756975516281,0.79472278,849.09,847.91,0.79472278]
[1756975517179,0.79472278,849.09,847.92,0.79472278]
[1756975517682,0.79472278,849.09,847.93,0.79472278]
[1756975519781,0.79472278,849.08,847.93,0.79472278]
[1756975522286,0.79472278,849.07,847.93,0.79472278]
[1756975523184,0.79472278,849.07,847.94,0.79472278]
[1756975525288,0.79472278,849.06,847.94,0.79472278]
[1756975526085,2.6493723,851.11,848.07,0.79472278]
[1756975526086,0.79472278,848.87,848.07,0.79472278]
[1756975526288,0.79472278,848.87,848.08,0.79472278]
[1756975526485,0.79472278,848.89,848.06,0.79472278]
[1756975528287,0.79472278,848.88,848.07,0.79472278]
[1756975530890,0.79472278,848.86,848.08,0.79472278]
[1756975531787,2.6493723,850.23,848.09,0.79472278]
[1756975531788,0.79472278,848.85,848.09,0.79472278]
[1756975531991,0.79472278,848.8,848.12,0.79472278]
[1756975532290,0.79472278,848.79,848.13,0.79472278]
[1756975533191,0.79472278,848.78,848.14,0.79472278]
[1756975533497,0.79472278,848.76,848.15,0.79472278]
[1756975535393,0.79472278,848.77,848.15,0.79472278]
[1756975535893,0.79472278,848.75,848.14,0.79472278]
[1756975536190,0.79472278,848.74,848.15,0.79472278]
[1756975536394,0.79472278,848.72,848.16,0.79472278]
[1756975537297,0.79472278,848.73,848.15,0.79472278]
[1756975537893,0.79472278,848.72,848.16,0.79472278]
[1756975540700,0.79472278,848.73,848.15,0.79472278]
[1756975541095,0.79472278,848.72,848.16,0.79472278]
[1756975541699,0.79472278,848.71,848.17,0.79472278]
[1756975541901,0.79472278,848.7,848.17,0.79472278]
[1756975543299,0.79472278,848.74,848.15,0.79472278]
[1756975543703,0.79472278,848.76,848.13,0.79472278]
[1756975544699,0.79472278,848.83,848.08,0.79472278]
[1756975546705,0.79472278,848.87,848.05,0.79472278]
[1756975546905,0.79472278,848.87,846.33,3.7091212]
[1756975546906,0.79472278,848.86,848.04,0.79472278]
[1756975547105,0.79472278,848.87,848.01,0.79472278]
[1756975547306,1.0597489,849.12,848.0,0.79472278]
[1756975547307,0.79472278,848.86,848.0,0.79472278]
[1756975547603,0.79472278,848.87,847.99,0.79472278]
[1756975551105,0.79472278,848.88,847.99,0.79472278]
[1756975551708,0.79472278,848.88,847.98,0.79472278]
[1756975552306,0.79472278,848.88,847.99,0.79472278]
[1756975552711,0.79472278,848.88,848.0,0.79472278]
[1756975553410,0.79472278,848.87,847.99,0.79472278]
[1756975554105,0.79472278,848.84,848.01,0.79472278]
[1756975556308,0.79472278,848.8,848.04,0.79472278]
[1756975556513,0.79472278,848.78,848.05,0.79472278]
[1756975557013,0.79472278,848.77,848.06,0.79472278]
[1756975557413,0.79472278,848.75,848.08,0.79472278]
[1756975557611,0.79472278,848.74,848.07,0.79472278]
[1756975557815,0.79472278,848.72,848.06,0.79472278]
[1756975558513,0.79472278,848.74,848.06,0.79472278]
[1756975559315,1.0597489,848.93,848.06,0.79472278]
[1756975559316,0.79472278,848.73,848.06,0.79472278]
[1756975560814,0.79472278,848.68,848.09,0.79472278]
[1756975561518,0.79472278,848.67,848.1,0.79472278]
[1756975562814,0.79472278,848.69,848.06,0.79472278]
[1756975563617,0.79472278,848.73,848.02,0.79472278]
[1756975568222,0.79472278,848.72,848.02,0.79472278]
[1756975570323,0.79472278,848.72,848.03,0.79472278]
[1756975572928,0.79472278,848.7,848.04,0.79472278]
[1756975573330,0.79472278,848.63,848.09,0.79472278]
[1756975575541,0.79472278,848.63,848.08,0.79472278]
[1756975576237,0.79472278,848.62,848.09,0.79472278]
[1756975576441,0.79472278,848.63,848.09,0.79472278]
[1756975577242,0.79472278,848.62,848.09,0.79472278]
[1756975577441,0.79472278,848.8,847.88,0.79472278]
[1756975577643,0.79472278,848.77,847.85,0.79472278]
[1756975577840,0.79472278,848.78,847.82,0.79472278]
[1756975578539,0.79472278,848.77,847.82,0.79472278]
[1756975578843,0.79472278,848.74,847.79,0.79472278]
[1756975579443,0.79472278,848.75,847.79,0.79472278]
[1756975579943,0.79472278,848.77,847.76,0.79472278]
[1756975580343,0.79472278,848.77,847.75,0.79472278]